[Event "*** Titled Tuesday Blitz"]
[Site "Chess.com"]
[Date "2021.04.06"]
[Round "6"]
[White "eduardoperalta"]
[Black "TigranMukhutdinov"]
[Result "0-1"]
[WhiteElo "2493"]
[BlackElo "2607"]
[TimeControl "180+1"]
[EndTime "11:10:48 PDT"]
[Termination "TigranMukhutdinov won by resignation"]

1. d4 {[%clk 0:03:00.9]} 1... Nf6 {[%clk 0:03:00]} 2. c4 {[%clk 0:02:59.4]} 2...
g6 {[%clk 0:03:00.6]} 3. Nc3 {[%clk 0:02:58.3]} 3... d5 {[%clk 0:03:01]} 4. cxd5
{[%clk 0:02:57.3]} 4... Nxd5 {[%clk 0:03:01.9]} 5. Nf3 {[%clk 0:02:56.6]} 5...
Bg7 {[%clk 0:03:01.9]} 6. e4 {[%clk 0:02:55.5]} 6... Nxc3 {[%clk 0:03:02.1]} 7.
bxc3 {[%clk 0:02:54.4]} 7... c5 {[%clk 0:03:03]} 8. Rb1 {[%clk 0:02:53.2]} 8...
O-O {[%clk 0:03:02.5]} 9. Be2 {[%clk 0:02:52.4]} 9... b6 {[%clk 0:03:03]} 10.
O-O {[%clk 0:02:50.9]} 10... Bb7 {[%clk 0:03:03.4]} 11. Qd3 {[%clk 0:02:50]}
11... e6 {[%clk 0:03:02.9]} 12. Bg5 {[%clk 0:02:44.5]} 12... Qc7 {[%clk
0:03:01.8]} 13. Qe3 {[%clk 0:02:38.6]} 13... Nd7 {[%clk 0:03:01.4]} 14. Rbd1
{[%clk 0:02:34.7]} 14... Rae8 {[%clk 0:02:58.9]} 15. h4 {[%clk 0:02:33.6]} 15...
Nf6 {[%clk 0:02:47.1]} 16. Bd3 {[%clk 0:02:21.2]} 16... h5 {[%clk 0:02:35.7]}
17. Rfe1 {[%clk 0:02:19.2]} 17... Ng4 {[%clk 0:02:28.3]} 18. Qd2 {[%clk
0:02:15.7]} 18... Rc8 {[%clk 0:02:09.3]} 19. Bf4 {[%clk 0:02:12.5]} 19... Qd7
{[%clk 0:02:05.1]} 20. Qe2 {[%clk 0:02:10.1]} 20... cxd4 {[%clk 0:02:00]} 21.
cxd4 {[%clk 0:02:09.2]} 21... Qa4 {[%clk 0:01:58.3]} 22. Qd2 {[%clk 0:01:50.6]}
22... Ba6 {[%clk 0:01:39.5]} 23. Bb1 {[%clk 0:01:47.3]} 23... Rfd8 {[%clk
0:01:27.9]} 24. d5 {[%clk 0:01:46.9]} 24... Bc3 {[%clk 0:01:22.1]} 25. Qc2
{[%clk 0:01:29.6]} 25... Qxc2 {[%clk 0:01:21.4]} 26. Bxc2 {[%clk 0:01:28.6]}
26... Bxe1 {[%clk 0:01:22.3]} 27. Nxe1 {[%clk 0:01:27.3]} 27... exd5 {[%clk
0:01:14.1]} 28. exd5 {[%clk 0:01:26.5]} 28... Bc4 {[%clk 0:01:13.2]} 29. d6
{[%clk 0:01:20.9]} 29... Bxa2 {[%clk 0:01:06.8]} 30. Ra1 {[%clk 0:01:19.1]}
30... Bd5 {[%clk 0:00:58.7]} 31. Rxa7 {[%clk 0:01:13.5]} 31... Ra8 {[%clk
0:00:58.7]} 32. Re7 {[%clk 0:00:54.7]} 32... Nf6 {[%clk 0:00:56.6]} 33. f3
{[%clk 0:00:45.7]} 33... Rd7 {[%clk 0:00:47.8]} 34. Be5 {[%clk 0:00:35.4]} 34...
Rxe7 {[%clk 0:00:40.7]} 35. dxe7 {[%clk 0:00:34.8]} 35... Ne8 {[%clk 0:00:39.9]}
36. Nd3 {[%clk 0:00:31.2]} 36... Ra7 {[%clk 0:00:37.8]} 37. Nb4 {[%clk 0:00:29]}
37... Ba8 {[%clk 0:00:33.9]} 38. Bd4 {[%clk 0:00:26.6]} 38... Rxe7 {[%clk
0:00:32.1]} 39. Bxb6 {[%clk 0:00:24.3]} 39... Nd6 {[%clk 0:00:25.5]} 40. Bc5
{[%clk 0:00:23]} 40... Rd7 {[%clk 0:00:25.3]} 41. Ba4 {[%clk 0:00:21.2]} 41...
Rd8 {[%clk 0:00:25.4]} 42. Nc6 {[%clk 0:00:19.8]} 42... Bxc6 {[%clk 0:00:25]}
43. Bxc6 {[%clk 0:00:19.5]} 43... Nf5 {[%clk 0:00:24.3]} 44. Bf2 {[%clk
0:00:14.9]} 44... Rd1+ {[%clk 0:00:23.6]} 45. Kh2 {[%clk 0:00:15]} 45... Rd2
{[%clk 0:00:24.2]} 46. Kg1 {[%clk 0:00:10.5]} 46... Rc2 {[%clk 0:00:24.2]} 47.
Be4 {[%clk 0:00:10]} 47... Rc1+ {[%clk 0:00:24.6]} 48. Kh2 {[%clk 0:00:09.8]}
48... Nd6 {[%clk 0:00:20.5]} 49. Bd5 {[%clk 0:00:08.9]} 49... Kg7 {[%clk
0:00:20.1]} 50. Bd4+ {[%clk 0:00:08.6]} 50... f6 {[%clk 0:00:20.6]} 51. Be3
{[%clk 0:00:08.4]} 51... Rd1 {[%clk 0:00:20.3]} 52. Bc6 {[%clk 0:00:06.5]} 52...
Nf5 {[%clk 0:00:20.5]} 53. Bf4 {[%clk 0:00:06.9]} 53... Nxh4 {[%clk 0:00:19.5]}
54. Be4 {[%clk 0:00:07.1]} 54... Nf5 {[%clk 0:00:19.7]} 55. Bxf5 {[%clk
0:00:07]} 55... gxf5 {[%clk 0:00:20.6]} 56. Kh3 {[%clk 0:00:07.3]} 56... Kg6
{[%clk 0:00:21.1]} 57. Kg3 {[%clk 0:00:07]} 57... Rd4 {[%clk 0:00:21]} 58. Be3
{[%clk 0:00:06.7]} 58... h4+ {[%clk 0:00:21.5]} 59. Kh3 {[%clk 0:00:06.4]} 59...
Ra4 {[%clk 0:00:22.4]} 60. Bf2 {[%clk 0:00:06.6]} 60... Kh5 {[%clk 0:00:22.6]}
61. Be3 {[%clk 0:00:06.8]} 61... Ra2 {[%clk 0:00:22]} 62. Bg1 {[%clk 0:00:06.2]}
62... Ra1 {[%clk 0:00:22.2]} 63. Kh2 {[%clk 0:00:06.3]} 63... Rf1 {[%clk
0:00:20.1]} 64. Bd4 {[%clk 0:00:05.4]} 64... Re1 {[%clk 0:00:19.8]} 65. Bxf6
{[%clk 0:00:05]} 65... Re6 {[%clk 0:00:19.6]} 66. Bd4 {[%clk 0:00:04.4]} 66...
Kg5 {[%clk 0:00:19.9]} 67. Bf2 {[%clk 0:00:04.2]} 67... Ra6 {[%clk 0:00:18.4]}
68. Be3+ {[%clk 0:00:03.9]} 68... f4 {[%clk 0:00:15.9]} 69. Bc5 {[%clk
0:00:03.2]} 69... Ra2 {[%clk 0:00:16]} 70. Be7+ {[%clk 0:00:03.3]} 70... Kf5
{[%clk 0:00:16.1]} 71. Bxh4 {[%clk 0:00:03]} 71... Ke5 {[%clk 0:00:16.7]} 72.
Be7 {[%clk 0:00:03.3]} 72... Kd4 {[%clk 0:00:16.4]} 73. Bg5 {[%clk 0:00:03.4]}
73... Ke3 {[%clk 0:00:16.6]} 74. Kh3 {[%clk 0:00:04.3]} 74... Ra1 {[%clk
0:00:16.6]} 75. Kh2 {[%clk 0:00:03.7]} 75... Ra8 {[%clk 0:00:14.7]} 76. Kg1
{[%clk 0:00:03.2]} 76... Rg8 {[%clk 0:00:14.3]} 77. Bh6 {[%clk 0:00:03.3]} 77...
Rg6 {[%clk 0:00:14.6]} 78. Bf8 {[%clk 0:00:03.2]} 78... Ke2 {[%clk 0:00:14.8]}
79. Bc5 {[%clk 0:00:03.2]} 79... Rc6 {[%clk 0:00:14.7]} 80. Be7 {[%clk 0:00:03]}
80... Rc1+ {[%clk 0:00:14.7]} 81. Kh2 {[%clk 0:00:02.8]} 81... Kf1 {[%clk
0:00:14.9]} 82. Bd6 {[%clk 0:00:02.7]} 82... Rc4 {[%clk 0:00:13.7]} 83. Kh3
{[%clk 0:00:02.6]} 83... Rd4 {[%clk 0:00:14.1]} 84. Be5 {[%clk 0:00:02]} 84...
Rd2 {[%clk 0:00:12.1]} 85. Kg4 {[%clk 0:00:02.4]} 85... Kxg2 {[%clk 0:00:11]}
86. Kxf4 {[%clk 0:00:03.3]} 86... Rf2 {[%clk 0:00:11.6]} 87. Ke4 {[%clk
0:00:03.8]} 87... Rxf3 {[%clk 0:00:12.5]} 88. Bd4 {[%clk 0:00:04.5]} 88... Kg3
{[%clk 0:00:12.7]} 89. Kd5 {[%clk 0:00:04.7]} 89... Kf4 {[%clk 0:00:12.9]} 90.
Be5+ {[%clk 0:00:05.6]} 90... Kf5 {[%clk 0:00:13.3]} 91. Bd6 {[%clk 0:00:05.6]}
91... Rd3+ {[%clk 0:00:13.6]} 92. Kc6 {[%clk 0:00:05.9]} 92... Ke6 {[%clk
0:00:14]} 93. Bc5 {[%clk 0:00:05.7]} 93... Rc3 {[%clk 0:00:14.3]} 94. Kb5 {[%clk
0:00:05.2]} 94... Kd5 {[%clk 0:00:14.6]} 95. Bf8 {[%clk 0:00:04.8]} 95... Rb3+
{[%clk 0:00:14.6]} 96. Ka6 {[%clk 0:00:04.8]} 96... Kc6 {[%clk 0:00:14.9]} 97.
Ka5 {[%clk 0:00:04.4]} 97... Rb8 {[%clk 0:00:13.7]} 98. Ka4 {[%clk 0:00:04.1]}
98... Rxf8 {[%clk 0:00:13.4]} 0-1

[Event "*** Titled Tuesday Blitz"]
[Site "Chess.com"]
[Date "2021.04.06"]
[Round "6"]
[White "Sanyura"]
[Black "Rakesh"]
[Result "1/2-1/2"]
[WhiteElo "2595"]
[BlackElo "2498"]
[TimeControl "180+1"]
[EndTime "11:10:51 PDT"]
[Termination "Game drawn - insufficient material"]

1. e4 {[%clk 0:03:00.9]} 1... c5 {[%clk 0:02:54.5]} 2. Nf3 {[%clk 0:03:00.2]}
2... e6 {[%clk 0:02:54.3]} 3. d4 {[%clk 0:02:58.6]} 3... cxd4 {[%clk 0:02:55.2]}
4. Nxd4 {[%clk 0:02:59.5]} 4... a6 {[%clk 0:02:55.5]} 5. Bd3 {[%clk 0:02:56.2]}
5... Nc6 {[%clk 0:02:54.4]} 6. Nxc6 {[%clk 0:02:47.2]} 6... dxc6 {[%clk
0:02:55.3]} 7. O-O {[%clk 0:02:46]} 7... e5 {[%clk 0:02:55.3]} 8. f4 {[%clk
0:02:43.7]} 8... Bc5+ {[%clk 0:02:54.8]} 9. Kh1 {[%clk 0:02:44.2]} 9... Nf6
{[%clk 0:02:55.4]} 10. Qf3 {[%clk 0:02:22.8]} 10... Ng4 {[%clk 0:02:52.3]} 11.
Qg3 {[%clk 0:01:51.6]} 11... h5 {[%clk 0:02:48.3]} 12. h3 {[%clk 0:01:50.8]}
12... Qd4 {[%clk 0:02:33.3]} 13. Qh4 {[%clk 0:00:53.7]} 13... Be7 {[%clk
0:02:05.7]} 14. Qe1 {[%clk 0:00:53.1]} 14... exf4 {[%clk 0:01:58.8]} 15. Bxf4
{[%clk 0:00:51.9]} 15... Qxb2 {[%clk 0:01:54.1]} 16. Nc3 {[%clk 0:00:49.2]}
16... Bb4 {[%clk 0:01:51.4]} 17. Bd2 {[%clk 0:00:49.4]} 17... Ne5 {[%clk
0:01:46.4]} 18. Rb1 {[%clk 0:00:46]} 18... Qa3 {[%clk 0:01:40.7]} 19. Qg3 {[%clk
0:00:30.7]} 19... Bxc3 {[%clk 0:01:29.6]} 20. Rb3 {[%clk 0:00:29.2]} 20... Qe7
{[%clk 0:01:21.5]} 21. Bxc3 {[%clk 0:00:28]} 21... Nxd3 {[%clk 0:01:19.4]} 22.
cxd3 {[%clk 0:00:11.2]} 22... Be6 {[%clk 0:01:17.8]} 23. Rb2 {[%clk 0:00:10.5]}
23... O-O-O {[%clk 0:01:11.1]} 24. Rfb1 {[%clk 0:00:10.4]} 24... b5 {[%clk
0:01:09.9]} 25. a4 {[%clk 0:00:09.9]} 25... Qc5 {[%clk 0:01:04.5]} 26. Ba5
{[%clk 0:00:08]} 26... Rd7 {[%clk 0:01:03.7]} 27. axb5 {[%clk 0:00:08.2]} 27...
axb5 {[%clk 0:01:04.2]} 28. Qxg7 {[%clk 0:00:05.9]} 28... Qd4 {[%clk 0:00:59.1]}
29. Qxd4 {[%clk 0:00:05.2]} 29... Rxd4 {[%clk 0:00:59.6]} 30. Bc3 {[%clk
0:00:05.8]} 30... Rhd8 {[%clk 0:00:59.8]} 31. Bxd4 {[%clk 0:00:06.3]} 31... Rxd4
{[%clk 0:01:00.7]} 32. Rd2 {[%clk 0:00:05.9]} 32... Bc4 {[%clk 0:00:58.5]} 33.
Kg1 {[%clk 0:00:04.5]} 33... c5 {[%clk 0:00:54.3]} 34. Rbb2 {[%clk 0:00:02.6]}
34... Bxd3 {[%clk 0:00:52.5]} 35. Kf2 {[%clk 0:00:03.1]} 35... c4 {[%clk
0:00:50.9]} 36. Rxb5 {[%clk 0:00:03]} 36... Kc7 {[%clk 0:00:49.7]} 37. Rc5+
{[%clk 0:00:02.8]} 37... Kb6 {[%clk 0:00:49.1]} 38. Rd5 {[%clk 0:00:02.2]} 38...
Rxe4 {[%clk 0:00:49]} 39. R5xd3 {[%clk 0:00:02.5]} 39... cxd3 {[%clk 0:00:49.9]}
40. Rxd3 {[%clk 0:00:03.4]} 40... Kc5 {[%clk 0:00:49.5]} 41. Rd7 {[%clk
0:00:03.8]} 41... Rf4+ {[%clk 0:00:48.7]} 42. Kg3 {[%clk 0:00:04.5]} 42... Rf6
{[%clk 0:00:49.1]} 43. Kh4 {[%clk 0:00:05.1]} 43... Rf5 {[%clk 0:00:44.9]} 44.
g4 {[%clk 0:00:04.9]} 44... hxg4 {[%clk 0:00:45.8]} 45. hxg4 {[%clk 0:00:05.8]}
45... Rf1 {[%clk 0:00:45.3]} 46. Kg5 {[%clk 0:00:05.2]} 46... Kc6 {[%clk
0:00:45.4]} 47. Rd2 {[%clk 0:00:05.5]} 47... Kc5 {[%clk 0:00:43.8]} 48. Kh6
{[%clk 0:00:05.7]} 48... Rf4 {[%clk 0:00:41.5]} 49. g5 {[%clk 0:00:05.9]} 49...
Kc6 {[%clk 0:00:40.5]} 50. Kg7 {[%clk 0:00:05.6]} 50... Rf5 {[%clk 0:00:39.5]}
51. Kh6 {[%clk 0:00:05.7]} 51... Kc7 {[%clk 0:00:39.1]} 52. Re2 {[%clk
0:00:03.1]} 52... Kd7 {[%clk 0:00:37.3]} 53. Ra2 {[%clk 0:00:03.6]} 53... Ke7
{[%clk 0:00:36.4]} 54. Ra7+ {[%clk 0:00:04.1]} 54... Ke8 {[%clk 0:00:36.4]} 55.
Ra8+ {[%clk 0:00:04.5]} 55... Ke7 {[%clk 0:00:36.5]} 56. Ra7+ {[%clk 0:00:04.9]}
56... Ke6 {[%clk 0:00:36.6]} 57. Ra6+ {[%clk 0:00:04.9]} 57... Kd7 {[%clk
0:00:31.2]} 58. Rb6 {[%clk 0:00:03.5]} 58... Rf1 {[%clk 0:00:29.2]} 59. Kg7
{[%clk 0:00:03.4]} 59... Rf5 {[%clk 0:00:27.9]} 60. Rf6 {[%clk 0:00:02.7]} 60...
Rxg5+ {[%clk 0:00:27.5]} 61. Kxf7 {[%clk 0:00:03.3]} 61... Rh5 {[%clk
0:00:27.5]} 62. Rg6 {[%clk 0:00:03.5]} 62... Rh7+ {[%clk 0:00:27.2]} 63. Rg7
{[%clk 0:00:03.5]} 63... Rh1 {[%clk 0:00:27.5]} 64. Kf6+ {[%clk 0:00:03.1]}
64... Kd6 {[%clk 0:00:27.2]} 65. Kf7 {[%clk 0:00:03.6]} 65... Rf1+ {[%clk
0:00:26.3]} 66. Kg8 {[%clk 0:00:03.9]} 66... Ke6 {[%clk 0:00:26.7]} 67. Rg4
{[%clk 0:00:03.2]} 67... Kf6 {[%clk 0:00:24.4]} 68. Kh7 {[%clk 0:00:03.3]} 68...
Rh1+ {[%clk 0:00:24.2]} 69. Kg8 {[%clk 0:00:03.8]} 69... Rh5 {[%clk 0:00:24.6]}
70. Rf4+ {[%clk 0:00:04]} 70... Kg5 {[%clk 0:00:23.1]} 71. Rf2 {[%clk
0:00:04.3]} 71... Kg6 {[%clk 0:00:22.5]} 72. Kf8 {[%clk 0:00:04.3]} 72... Rb5
{[%clk 0:00:19.8]} 73. Ke7 {[%clk 0:00:04.5]} 73... Rb6 {[%clk 0:00:19.6]} 74.
Kd7 {[%clk 0:00:04.8]} 74... Kg5 {[%clk 0:00:19.3]} 75. Kc7 {[%clk 0:00:05.2]}
75... Re6 {[%clk 0:00:18.8]} 76. Rg2+ {[%clk 0:00:05.7]} 76... Kf4 {[%clk
0:00:18.7]} 77. Rd2 {[%clk 0:00:06.6]} 77... Ke3 {[%clk 0:00:18]} 78. Rd7 {[%clk
0:00:05.8]} 78... Re4 {[%clk 0:00:17.7]} 79. Rd8 {[%clk 0:00:05.8]} 79... Kf4
{[%clk 0:00:18]} 80. Kd6 {[%clk 0:00:06.1]} 80... Rd4+ {[%clk 0:00:17.8]} 81.
Ke7 {[%clk 0:00:06.6]} 81... Re4+ {[%clk 0:00:18.3]} 82. Kf6 {[%clk 0:00:06.7]}
82... Rb4 {[%clk 0:00:16.3]} 83. Rh8 {[%clk 0:00:07.3]} 83... Rb6+ {[%clk
0:00:16.4]} 84. Ke7 {[%clk 0:00:07.8]} 84... Kf5 {[%clk 0:00:17.3]} 85. Rh5+
{[%clk 0:00:07.8]} 85... Kg6 {[%clk 0:00:17.4]} 86. Rc5 {[%clk 0:00:08.4]} 86...
Rb4 {[%clk 0:00:17.5]} 87. Ke6 {[%clk 0:00:08.5]} 87... Re4+ {[%clk 0:00:16.9]}
88. Kd5 {[%clk 0:00:08.9]} 88... Re1 {[%clk 0:00:17.8]} 89. Kd4 {[%clk
0:00:08.4]} 89... Kf6 {[%clk 0:00:17.3]} 90. Rc8 {[%clk 0:00:07.2]} 90... Ke7
{[%clk 0:00:16.8]} 91. Rc5 {[%clk 0:00:06.6]} 91... Rd1+ {[%clk 0:00:16.8]} 92.
Ke3 {[%clk 0:00:07]} 92... Kd6 {[%clk 0:00:17.6]} 93. Rh5 {[%clk 0:00:06.8]}
93... Re1+ {[%clk 0:00:17.2]} 94. Kd2 {[%clk 0:00:07.1]} 94... Re5 {[%clk
0:00:17.1]} 95. Rxe5 {[%clk 0:00:06.6]} 95... Kxe5 {[%clk 0:00:18]} 1/2-1/2

[Event "*** Titled Tuesday Blitz"]
[Site "Chess.com"]
[Date "2021.04.06"]
[Round "6"]
[White "GigaQuparadze"]
[Black "KaterynaLagno"]
[Result "1/2-1/2"]
[WhiteElo "2853"]
[BlackElo "2681"]
[TimeControl "180+1"]
[EndTime "11:10:58 PDT"]
[Termination "Game drawn by stalemate"]

1. e4 {[%clk 0:02:51]} 1... e5 {[%clk 0:02:59.5]} 2. Nf3 {[%clk 0:02:49.1]} 2...
Nc6 {[%clk 0:03:00.1]} 3. Bb5 {[%clk 0:02:48.5]} 3... a6 {[%clk 0:03:00.5]} 4.
Ba4 {[%clk 0:02:48.3]} 4... Nf6 {[%clk 0:03:00.8]} 5. O-O {[%clk 0:02:47.5]}
5... b5 {[%clk 0:03:01.2]} 6. Bb3 {[%clk 0:02:47.2]} 6... Bc5 {[%clk 0:03:02.1]}
7. a4 {[%clk 0:02:46.3]} 7... Rb8 {[%clk 0:03:01.8]} 8. Nc3 {[%clk 0:02:45.8]}
8... d6 {[%clk 0:03:01.1]} 9. h3 {[%clk 0:02:43.3]} 9... O-O {[%clk 0:02:59]}
10. d3 {[%clk 0:02:40.1]} 10... h6 {[%clk 0:02:58.6]} 11. axb5 {[%clk
0:02:39.3]} 11... axb5 {[%clk 0:02:58.5]} 12. Nd5 {[%clk 0:02:39.8]} 12... Nxd5
{[%clk 0:02:56.5]} 13. exd5 {[%clk 0:02:40.1]} 13... Ne7 {[%clk 0:02:56.7]} 14.
d4 {[%clk 0:02:40.4]} 14... exd4 {[%clk 0:02:54.5]} 15. Nxd4 {[%clk 0:02:41.3]}
15... Bb7 {[%clk 0:02:41.2]} 16. Nxb5 {[%clk 0:02:11]} 16... Bxd5 {[%clk
0:02:29]} 17. Bxd5 {[%clk 0:02:09.9]} 17... Nxd5 {[%clk 0:02:29.3]} 18. Nd4
{[%clk 0:02:10]} 18... Qd7 {[%clk 0:02:25.9]} 19. c3 {[%clk 0:02:08.7]} 19...
Bb6 {[%clk 0:02:13.6]} 20. Qd3 {[%clk 0:02:02.4]} 20... Rfe8 {[%clk 0:02:03]}
21. Nf5 {[%clk 0:02:00.5]} 21... Re5 {[%clk 0:02:03]} 22. Nh4 {[%clk 0:01:54.4]}
22... Qe6 {[%clk 0:01:47.4]} 23. Nf3 {[%clk 0:01:54]} 23... Re4 {[%clk
0:01:46.8]} 24. Bd2 {[%clk 0:01:52.3]} 24... Re8 {[%clk 0:01:41.2]} 25. Rae1
{[%clk 0:01:50.8]} 25... Nf6 {[%clk 0:01:37.8]} 26. Rxe4 {[%clk 0:01:44.1]}
26... Qxe4 {[%clk 0:01:37.1]} 27. Qb5 {[%clk 0:01:41.1]} 27... Qc2 {[%clk
0:01:32.8]} 28. Rc1 {[%clk 0:01:09.5]} 28... Qg6 {[%clk 0:01:14.9]} 29. Re1
{[%clk 0:01:08.6]} 29... Rxe1+ {[%clk 0:01:11]} 30. Bxe1 {[%clk 0:01:09.5]}
30... Qe4 {[%clk 0:01:03.1]} 31. b4 {[%clk 0:01:07.8]} 31... d5 {[%clk
0:00:47.2]} 32. Qc6 {[%clk 0:01:01.2]} 32... Nh5 {[%clk 0:00:44.4]} 33. c4
{[%clk 0:00:57.5]} 33... Qxc4 {[%clk 0:00:37]} 34. Qe8+ {[%clk 0:00:57.1]} 34...
Kh7 {[%clk 0:00:37.6]} 35. Qxf7 {[%clk 0:00:57.6]} 35... Nf4 {[%clk 0:00:33.3]}
36. Qf5+ {[%clk 0:00:57.2]} 36... Kg8 {[%clk 0:00:33.1]} 37. Ne5 {[%clk
0:00:48.5]} 37... Qe4 {[%clk 0:00:31.2]} 38. Qxe4 {[%clk 0:00:39.1]} 38... dxe4
{[%clk 0:00:32.1]} 39. Kf1 {[%clk 0:00:36.2]} 39... Bd4 {[%clk 0:00:28.1]} 40.
Nc4 {[%clk 0:00:35.1]} 40... Nd3 {[%clk 0:00:23.9]} 41. b5 {[%clk 0:00:35.5]}
41... Kf7 {[%clk 0:00:23]} 42. Ba5 {[%clk 0:00:34.9]} 42... Nxf2 {[%clk
0:00:13.3]} 43. Bxc7 {[%clk 0:00:33.7]} 43... Nd3 {[%clk 0:00:12]} 44. Nd6+
{[%clk 0:00:33.2]} 44... Ke6 {[%clk 0:00:11.9]} 45. Nxe4 {[%clk 0:00:33.6]}
45... Kd5 {[%clk 0:00:10.6]} 46. Ng3 {[%clk 0:00:33.4]} 46... g6 {[%clk
0:00:09.5]} 47. Ne2 {[%clk 0:00:32.5]} 47... Be3 {[%clk 0:00:08.2]} 48. Nc3+
{[%clk 0:00:32.1]} 48... Kc4 {[%clk 0:00:07.8]} 49. Ke2 {[%clk 0:00:28.7]} 49...
Bg1 {[%clk 0:00:07]} 50. Ne4 {[%clk 0:00:27.2]} 50... Nc1+ {[%clk 0:00:03.8]}
51. Kd1 {[%clk 0:00:26.7]} 51... Nb3 {[%clk 0:00:03.2]} 52. b6 {[%clk
0:00:26.9]} 52... Na5 {[%clk 0:00:02.9]} 53. Ke2 {[%clk 0:00:24.6]} 53... Kd5
{[%clk 0:00:03.1]} 54. Nf6+ {[%clk 0:00:24.9]} 54... Kc6 {[%clk 0:00:03.3]} 55.
Ng4 {[%clk 0:00:24.7]} 55... Bxb6 {[%clk 0:00:03]} 56. Bxb6 {[%clk 0:00:24.3]}
56... Kxb6 {[%clk 0:00:03.9]} 57. Nxh6 {[%clk 0:00:24.4]} 57... Kc6 {[%clk
0:00:04]} 58. Nf7 {[%clk 0:00:24]} 58... Kd5 {[%clk 0:00:03.7]} 59. Nh8 {[%clk
0:00:24.3]} 59... g5 {[%clk 0:00:03.5]} 60. Kf3 {[%clk 0:00:24.8]} 60... Ke6
{[%clk 0:00:03.3]} 61. Ng6 {[%clk 0:00:23.7]} 61... Kf6 {[%clk 0:00:03.6]} 62.
Nf8 {[%clk 0:00:23.5]} 62... Nc6 {[%clk 0:00:03.3]} 63. Nd7+ {[%clk 0:00:23.2]}
63... Kf5 {[%clk 0:00:03.2]} 64. g4+ {[%clk 0:00:22.4]} 64... Ke6 {[%clk
0:00:03.6]} 65. Nc5+ {[%clk 0:00:22.5]} 65... Kf6 {[%clk 0:00:04.1]} 66. Ke4
{[%clk 0:00:22.1]} 66... Nb4 {[%clk 0:00:04.5]} 67. Kd4 {[%clk 0:00:20.8]} 67...
Nc2+ {[%clk 0:00:04.6]} 68. Kd3 {[%clk 0:00:20.5]} 68... Nb4+ {[%clk 0:00:04.9]}
69. Ke3 {[%clk 0:00:20.5]} 69... Nc6 {[%clk 0:00:04.9]} 70. Ne4+ {[%clk
0:00:20.1]} 70... Kg6 {[%clk 0:00:05.3]} 71. Nd2 {[%clk 0:00:20.4]} 71... Ne5
{[%clk 0:00:05.4]} 72. Ke4 {[%clk 0:00:20.5]} 72... Nc6 {[%clk 0:00:05.4]} 73.
Kd5 {[%clk 0:00:20.5]} 73... Nb4+ {[%clk 0:00:05.7]} 74. Ke4 {[%clk 0:00:20.9]}
74... Nc2 {[%clk 0:00:05.9]} 75. Nf3 {[%clk 0:00:21.8]} 75... Nb4 {[%clk
0:00:05.9]} 76. Ne5+ {[%clk 0:00:21.9]} 76... Kf6 {[%clk 0:00:05.9]} 77. Nd7+
{[%clk 0:00:22.3]} 77... Ke6 {[%clk 0:00:05.8]} 78. Nf8+ {[%clk 0:00:21.6]}
78... Kf6 {[%clk 0:00:06.3]} 79. Nd7+ {[%clk 0:00:21.1]} 79... Ke6 {[%clk
0:00:06.7]} 80. Nc5+ {[%clk 0:00:21.7]} 80... Kf6 {[%clk 0:00:07.2]} 81. Nd3
{[%clk 0:00:21.6]} 81... Nc2 {[%clk 0:00:07.2]} 82. Nf2 {[%clk 0:00:20.1]} 82...
Nb4 {[%clk 0:00:06.8]} 83. Nd1 {[%clk 0:00:19.5]} 83... Nc2 {[%clk 0:00:06.8]}
84. Ne3 {[%clk 0:00:19.3]} 84... Ne1 {[%clk 0:00:05]} 85. Nd5+ {[%clk
0:00:18.1]} 85... Kg6 {[%clk 0:00:05]} 86. Ke5 {[%clk 0:00:18.1]} 86... Nf3+
{[%clk 0:00:04.4]} 87. Ke4 {[%clk 0:00:17.2]} 87... Ng1 {[%clk 0:00:04.9]} 88.
Ne7+ {[%clk 0:00:07.8]} 88... Kf6 {[%clk 0:00:04.7]} 89. Ng8+ {[%clk 0:00:08.2]}
89... Kg7 {[%clk 0:00:04.6]} 90. Ne7 {[%clk 0:00:08.1]} 90... Kf6 {[%clk
0:00:05]} 91. Nd5+ {[%clk 0:00:07.9]} 91... Kg6 {[%clk 0:00:05.4]} 92. Ke3
{[%clk 0:00:06.4]} 92... Nxh3 {[%clk 0:00:05.3]} 93. Kf3 {[%clk 0:00:06.8]}
93... Nf4 {[%clk 0:00:05.5]} 94. Nxf4+ {[%clk 0:00:06.5]} 94... gxf4 {[%clk
0:00:06.4]} 95. Kxf4 {[%clk 0:00:07.4]} 95... Kf6 {[%clk 0:00:07]} 96. g5+
{[%clk 0:00:08.3]} 96... Kg6 {[%clk 0:00:07.5]} 97. Kg4 {[%clk 0:00:09.2]} 97...
Kg7 {[%clk 0:00:08]} 98. Kf5 {[%clk 0:00:10.1]} 98... Kf7 {[%clk 0:00:08.5]} 99.
g6+ {[%clk 0:00:11]} 99... Kg7 {[%clk 0:00:09.1]} 100. Kg5 {[%clk 0:00:11.9]}
100... Kg8 {[%clk 0:00:09.6]} 101. Kh6 {[%clk 0:00:12.8]} 101... Kh8 {[%clk
0:00:09.9]} 102. g7+ {[%clk 0:00:13.3]} 102... Kg8 {[%clk 0:00:10.4]} 103. Kg6
{[%clk 0:00:14.2]} 1/2-1/2